bitfinex-derivatives/quotes_SOLF0:USTF0_20250514
["timestamp","ask_amount","ask_price","bid_price","bid_amount"]
[1747185476345,146.24,184.95,184.73,62.0]
[1747185476652,8.69794724,184.94,184.76,8.69794724]
[1747185477052,5.4088,184.88,184.82,5.4102]
[1747185477451,8.69794724,184.94,184.8,73.98]
[1747185477653,8.69794724,184.94,184.8,146.12]
[1747185478148,146.24,184.95,184.8,146.12]
[1747185478456,146.24,184.95,184.82,5.4103]
[1747185478854,146.24,184.95,184.8,146.12]
[1747185479457,5.4093,184.86,184.8,151.5309]
[1747185479652,72.08,184.9,184.8,146.12]
[1747185479956,72.08,184.9,184.8,73.98]
[1747185480256,75.7769,184.89,184.75,145.92]
[1747185480455,77.5705,184.89,184.73,3.6412]
[1747185480658,5.4108,184.81,184.74,151.3324]
[1747185480855,1.775,184.88,184.74,145.92]
[1747185481150,1.775,184.88,184.74,151.3327]
[1747185481355,1.775,184.88,184.73,0.3736]
[1747185481656,5.4104,184.82,184.76,5.4121]
[1747185481855,1.775,184.88,184.76,5.4121]
[1747185482149,5.4099,184.84,184.77,5.4117]
[1747185482356,1.775,184.88,184.77,5.4117]
[1747185482555,1.775,184.88,184.73,0.3736]
[1747185482856,5.4097,184.85,184.79,5.4112]
[1747185483058,71.72,184.87,184.79,5.4112]
[1747185483249,5.4097,184.85,184.79,5.4112]
[1747185483454,5.4097,184.85,184.8,5.4109]
[1747185483650,77.5705,184.89,184.78,73.98]
[1747185483857,5.2527,184.94,184.8,8.69794724]
[1747185484357,5.4081,184.9,184.84,5.4097]
[1747185484567,71.62,184.93,184.84,5.4097]
[1747185484960,5.4083,184.89,184.84,5.4097]
[1747185485160,71.62,184.93,184.82,73.98]
[1747185485559,77.0274,184.93,184.82,73.98]
[1747185485858,5.4074,184.93,184.82,73.98]
[1747185486263,5.4075,184.92,184.82,73.98]
[1747185486468,79.2327,184.94,184.82,73.98]
[1747185486658,5.2527,184.94,184.82,73.98]
[1747185486861,5.4075,184.92,184.82,73.98]
[1747185487066,71.42,184.96,184.82,73.98]
[1747185487361,142.9,184.98,184.82,73.98]
[1747185487561,71.38,184.97,184.87,5.4087]
[1747185487762,5.4082,184.9,184.82,73.98]
[1747185487957,71.38,184.97,184.82,73.98]
[1747185488260,71.38,184.97,184.84,5.4097]
[1747185488855,5.4085,184.89,184.84,5.4097]
[1747185489157,71.32,184.92,184.79,1.8005]
[1747185489358,1.8706,184.91,184.79,73.2805]
[1747185490160,1.8706,184.91,184.79,71.48]
[1747185490361,3.5242,184.9,184.79,71.48]
[1747185490561,5.41,184.84,184.79,71.48]
[1747185490758,74.7442,184.9,184.79,71.48]
[1747185491157,74.7442,184.9,184.79,76.8911]
[1747185491961,74.7442,184.9,184.79,71.48]
[1747185492163,74.7442,184.9,184.75,71.48]
[1747185492959,74.7442,184.9,184.78,5.4115]
[1747185493159,74.7442,184.9,184.75,71.48]
[1747185493362,5.4097,184.85,184.75,71.48]
[1747185493769,5.4099,184.84,184.75,71.48]
[1747185494170,5.4099,184.84,184.78,5.4113]
[1747185494470,5.4099,184.84,184.75,71.48]
[1747185494670,3.5242,184.9,184.75,71.48]
[1747185494871,3.5242,184.9,184.78,8.69794724]
[1747185495172,10.8069,185.06,184.82,8.69794724]
[1747185495362,83.04364724,185.03,184.83,75.0491]
[1747185495565,71.48,184.99,184.84,70.6]
[1747185495761,70.54,184.98,184.87,5.4087]
[1747185495966,70.54,184.98,184.84,70.6]
[1747185496161,5.4065,184.96,184.84,70.6]
[1747185496362,70.46,184.98,184.84,70.6]
[1747185497269,5.4083,184.89,184.84,70.6]
[1747185497664,5.4083,184.89,184.83,73.3233]
[1747185497867,70.32,184.93,184.83,71.48]
[1747185498371,74.0103,184.93,184.83,71.48]
[1747185498574,74.0103,184.93,184.79,71.46]
[1747185498575,1.7261,184.92,184.79,71.46]
[1747185498763,5.41,184.84,184.79,71.46]
[1747185499168,70.1,184.87,184.79,71.46]
[1747185500077,75.5091,184.87,184.81,5.4105]
[1747185501076,75.5091,184.87,184.79,71.46]
[1747185501275,70.1,184.87,184.79,71.46]
[1747185501775,70.1,184.87,184.83,5.41]
[1747185501978,1.7261,184.92,184.79,80.15794724]
[1747185502180,1.7261,184.92,184.88,5.4085]
[1747185502479,1.7261,184.92,184.8,69.76]
[1747185502678,71.48,184.91,184.79,71.46]
[1747185502875,69.72,184.9,184.79,71.46]
[1747185503675,5.4094,184.86,184.79,71.46]
[1747185503871,69.74,184.85,184.75,71.48]
[1747185504679,5.4106,184.82,184.77,5.4118]
[1747185504880,69.74,184.85,184.75,71.48]
[1747185505180,3.4033,184.84,184.75,71.48]
[1747185505880,3.4033,184.84,184.72,5.4133]
[1747185506072,3.4033,184.84,184.67,6.20847479]
[1747185506881,8.69794724,184.81,184.67,6.20847479]
[1747185507180,8.69794724,184.77,184.67,6.20847479]
[1747185507875,5.4145,184.68,184.67,0.58027479]
[1747185508176,69.34,184.68,184.58,72.06027479]
[1747185508479,69.34,184.68,184.63,5.4159]
[1747185508674,69.3,184.69,184.58,72.06027479]
[1747185508869,5.4147,184.68,184.62,5.4162]
[1747185510084,74.7142,184.69,184.63,5.4158]
[1747185510490,69.3,184.69,184.58,71.48]
[1747185510689,69.3,184.69,184.56,81.62244724]
[1747185510690,69.3,184.69,184.56,1.8005]
[1747185511381,69.3,184.69,184.54,71.5]
[1747185511581,5.4167,184.61,184.54,76.9183]
[1747185511777,69.12,184.64,184.54,71.5]
[1747185511978,69.12,184.64,184.54,80.19794724]
[1747185512189,74.5359,184.64,184.54,80.19794724]
[1747185512390,69.12,184.64,184.54,80.19794724]
[1747185512684,5.416,184.63,184.57,5.4174]
[1747185512895,5.416,184.63,184.54,80.19794724]
[1747185513485,5.4162,184.62,184.57,5.4174]
[1747185513784,69.04,184.65,184.54,71.5]
[1747185514487,545.59794724,184.65,184.49,1.748]
[1747185514690,0.94879014,184.64,184.49,1.748]
[1747185514883,5.4182,184.56,184.49,1.748]
[1747185515079,68.76,184.55,184.49,1.748]
[1747185515386,74.1784,184.55,184.49,7.168]
[1747185515579,74.1784,184.55,184.49,5.42]
[1747185515784,68.76,184.55,184.46,70.6443]
[1747185515981,5.4195,184.51,184.46,68.92]
[1747185516184,68.76,184.55,184.46,68.92]
[1747185516587,74.1785,184.55,184.48,5.4203]
[1747185516790,68.76,184.55,184.46,68.92]
[1747185517290,5.4188,184.54,184.48,5.4201]
[1747185517491,68.94,184.53,184.41,68.94]
[1747185517889,68.94,184.53,184.42,5.4221]
[1747185518088,68.94,184.53,184.38,68.58]
[1747185518394,5.4212,184.46,184.38,68.58]
[1747185518893,68.6,184.47,184.37,68.96]
[1747185519092,5.4215,184.45,184.39,5.423]
[1747185519297,68.6,184.47,184.39,5.423]
[1747185519492,68.6,184.47,184.37,68.96]
[1747185519691,70.2989,184.47,184.37,68.96]
[1747185519891,72.0659,184.47,184.37,68.96]
[1747185520194,3.4659,184.47,184.37,68.96]
[1747185520393,137.56,184.46,184.33,68.96]
[1747185520594,137.56,184.46,184.31,68.96]
[1747185520795,5.4233,184.38,184.32,5.425]
[1747185520999,137.56,184.46,184.31,68.96]
[1747185521000,68.6,184.39,184.31,68.96]
[1747185521193,68.62,184.39,184.31,68.96]
[1747185521391,68.62,184.39,184.33,5.4244]
[1747185521998,68.62,184.39,184.31,68.96]
[1747185522192,5.2727,184.47,184.31,77.65794724]
[1747185522698,73.8927,184.47,184.31,139.65794724]
[1747185523087,5.4218,184.43,184.38,5.4231]
[1747185523598,5.4221,184.42,184.37,74.4036]
[1747185523798,73.8927,184.47,184.33,68.98]
[1747185524196,5.4223,184.42,184.36,5.4236]
[1747185524398,74.0423,184.42,184.36,5.4236]
[1747185524699,5.4235,184.38,184.33,68.98]
[1747185524903,68.62,184.42,184.33,68.98]
[1747185525800,5.4236,184.38,184.33,68.98]
[1747185526399,68.62,184.42,184.33,68.98]
[1747185526799,5.423,184.39,184.34,5.4242]
[1747185527000,5.423,184.39,184.33,68.98]
[1747185527301,68.62,184.42,184.33,68.98]
[1747185527995,68.62,184.42,184.38,5.423]
[1747185528396,68.64,184.45,184.35,8.69794724]
[1747185528596,74.0614,184.45,184.4,5.4224]
[1747185528798,74.0614,184.45,184.35,8.69794724]
[1747185528998,74.0614,184.45,184.36,1.834]
[1747185529200,74.0614,184.45,184.4,5.4224]
[1747185529500,1.6972,184.53,184.38,69.02]
[1747185529698,68.64,184.5,184.39,1.7512]
[1747185530199,68.64,184.49,184.39,1.7512]
[1747185530799,72.7065,184.52,184.39,1.7512]
[1747185531000,5.4215,184.44,184.3,8.66865879]
[1747185531194,74.0615,184.44,184.34,1.7575]
[1747185531603,68.64,184.44,184.34,1.7575]
[1747185531997,5.4237,184.37,184.33,69.02]
[1747185532202,5.4237,184.37,184.29,69.02]
[1747185532405,68.64,184.39,184.29,69.02]
[1747185532699,5.4242,184.35,184.29,74.4457]
[1747185533092,68.64,184.39,184.29,69.02]
[1747185533599,68.64,184.39,184.25,69.04]
[1747185533800,8.67931923,184.38,184.25,69.04]
[1747185533994,8.67931923,184.38,184.21,1.7575]
[1747185534201,8.67931923,184.38,184.2,69.04]
[1747185534400,8.67931923,184.38,184.2,74.4685]
[1747185534599,8.67931923,184.38,184.2,69.04]
[1747185534804,8.67931923,184.34,184.15,1.8339]
[1747185535105,141.3042,184.33,184.15,1.8339]
[1747185535304,5.4272,184.25,184.18,5.4289]
[1747185535705,68.64,184.26,184.15,1.8339]
[1747185537302,1.791,184.32,184.16,77.33931923]
[1747185537507,1.791,184.32,184.2,8.67931923]
[1747185537711,1.791,184.32,184.21,139.5447]
[1747185539015,5.4256,184.3,184.21,139.5447]
[1747185539610,5.4256,184.3,184.24,5.4271]
[1747185539907,1.791,184.32,184.21,70.8847]
[1747185540205,5.4264,184.28,184.23,5.4274]
[1747185540507,5.4264,184.28,184.21,70.8847]
[1747185540508,1.791,184.32,184.21,70.8847]
[1747185540708,5.4278,184.23,184.21,69.06]
[1747185540905,68.68,184.28,184.17,69.08]
[1747185541412,68.68,184.28,184.24,5.4274]
[1747185541610,68.68,184.33,184.23,69.08]
[1747185541909,5.4254,184.31,184.26,5.4266]
[1747185542105,68.68,184.33,184.23,69.08]
[1747185542304,77.35931923,184.33,184.18,292.08]
[1747185542813,77.35931923,184.33,184.18,69.08]
[1747185543017,77.35931923,184.33,184.18,74.5091]
[1747185543208,77.35931923,184.33,184.18,69.08]
[1747185543505,5.426,184.29,184.23,5.4276]
[1747185543709,68.68,184.32,184.19,68.68]
[1747185543911,1.7851,184.31,184.19,68.68]
[1747185544111,5.4262,184.28,184.19,68.68]
[1747185544418,1.7851,184.31,184.19,68.68]
[1747185544712,74.1057,184.3,184.19,68.68]
[1747185544912,68.68,184.3,184.19,68.68]
[1747185545812,68.68,184.3,184.23,5.4275]
[1747185546013,68.68,184.3,184.19,68.68]
[1747185546809,5.4263,184.28,184.23,5.4274]
[1747185547115,5.4263,184.28,184.19,68.68]
[1747185547309,5.4259,184.29,184.24,5.4272]
[1747185548108,68.66,184.33,184.19,68.68]
[1747185548411,137.34,184.33,184.23,68.68]
[1747185549212,137.34,184.33,184.19,137.36]
[1747185549507,137.34,184.33,184.19,68.68]
[1747185549714,5.4277,184.24,184.19,74.1088]
[1747185550313,5.4273,184.25,184.2,5.4283]
[1747185550916,5.4274,184.24,184.19,74.1088]
[1747185551113,5.4274,184.24,184.19,68.68]
[1747185551311,1.7851,184.38,184.2,8.67931923]
[1747185551509,68.68,184.35,184.21,68.68]
[1747185552616,5.4262,184.28,184.23,5.4276]
[1747185553115,68.68,184.32,184.21,68.68]
[1747185553816,5.4272,184.25,184.21,68.68]
[1747185554017,5.4272,184.25,184.2,5.4285]
[1747185554411,5.4274,184.24,184.2,5.4285]
[1747185554611,5.4274,184.24,184.19,74.1088]
[1747185554820,68.68,184.27,184.16,18.62542438]
[1747185555115,5.428,184.22,184.16,18.62542438]
[1747185555506,5.4278,184.23,184.18,5.4289]
[1747185555910,68.68,184.24,184.16,18.62542438]
[1747185556117,5.4285,184.21,184.16,24.05492438]
[1747185556305,5.4285,184.21,184.16,18.62542438]
[1747185556617,68.68,184.24,184.16,18.62542438]
[1747185557116,68.68,184.24,184.1,18.62542438]
[1747185557318,5.4307,184.13,184.1,18.62542438]
[1747185557616,68.68,184.17,184.1,18.62542438]
[1747185558014,3.4136,184.16,184.1,18.62542438]
[1747185558214,5.4312,184.11,184.1,18.62542438]
[1747185559110,5.4318,184.09,184.08,68.27481682]
[1747185559304,68.68,184.12,184.06,74.50169753]
[1747185559808,5.4324,184.07,184.06,74.50169753]
[1747185560016,74.1124,184.07,184.06,74.50169753]
[1747185560319,5.4332,184.05,183.99,18.88871535]
[1747185560519,68.68,184.07,183.99,18.88871535]
[1747185560911,74.1127,184.07,183.99,18.88871535]
[1747185561111,68.68,184.07,183.99,18.88871535]
[1747185561514,5.4329,184.06,184.0,5.4344]
[1747185561715,5.4329,184.06,183.99,18.88871535]
[1747185562021,5.4329,184.06,184.01,5.434]
[1747185562212,74.1124,184.07,183.99,18.88871535]
[1747185562417,68.7,184.08,183.99,18.88871535]
[1747185563617,68.7,184.09,184.03,5.4335]
[1747185563920,5.4339,184.02,183.98,7.1757]
[1747185564721,5.4336,184.03,183.98,7.1757]
[1747185565021,68.7,184.05,183.98,1.7408]
[1747185565225,5.4339,184.02,183.98,1.7408]
[1747185565818,68.7,184.05,183.96,1.7524]
[1747185566025,1.8133,184.04,183.9,70.4364]
[1747185566316,8.67931923,184.03,183.9,70.4364]
[1747185566521,68.74,184.02,183.85,137.46]
[1747185566822,8.67931923,183.99,183.85,68.74]
[1747185567021,68.7,183.98,183.85,68.74]
[1747185567221,68.74,183.97,183.85,68.74]
[1747185567418,5.4373,183.91,183.85,68.74]
[1747185567614,68.7,183.92,183.85,68.74]
[1747185567812,74.1371,183.92,183.85,68.74]
[1747185568021,68.74,183.91,183.77,0.94653955]
[1747185568319,5.4386,183.86,183.72,68.74]
[1747185568520,68.7,183.85,183.72,77.46954229]
[1747185568919,74.1389,183.85,183.72,77.46954229]
[1747185569121,68.7,183.85,183.72,68.74]
[1747185569414,5.441,183.78,183.71,68.78]
[1747185569616,5.441,183.78,183.7,3.5686]
[1747185569920,68.7,183.8,183.7,3.5686]
[1747185571128,68.7,183.8,183.78,5.4407]
[1747185571422,68.7,183.8,183.73,68.78]
[1747185571623,70.5347,183.84,183.73,68.78]
[1747185571924,5.4395,183.83,183.73,68.78]
[1747185572124,137.52,183.85,183.73,68.78]
[1747185572417,68.74,183.85,183.73,68.78]
[1747185572621,68.74,183.9,183.78,8.72954229]
[1747185572824,68.74,183.9,183.79,70.6125]
[1747185573525,74.1777,183.9,183.8,1.8442]
[1747185573723,68.74,183.9,183.8,1.8442]
[1747185574621,68.74,183.9,183.79,68.8]
[1747185574918,77.46954229,183.9,183.62,469.82]
[1747185575126,8.7283016,183.95,183.72,8.7283016]
[1747185575426,1.8322,183.89,183.73,74.1087]
[1747185575626,137.5,183.88,183.76,5.4415]
[1747185575826,137.5,183.88,183.73,74.1087]
[1747185576118,5.4392,183.84,183.73,74.1087]
[1747185576323,137.5,183.88,183.75,8.7283016]
[1747185576527,68.76,183.88,183.75,8.7283016]
[1747185576725,5.4372,183.91,183.85,5.4386]
[1747185576927,5.4372,183.91,183.82,68.74]
[1747185577322,68.74,183.92,183.82,68.74]
[1747185577722,1.8162,183.95,183.83,8.7283016]
[1747185578024,5.4374,183.91,183.86,5.4383]
[1747185578225,5.4374,183.91,183.83,3.6131]
[1747185578421,70.5562,183.95,183.83,3.6131]
[1747185578724,5.4368,183.92,183.87,5.4381]
[1747185578920,70.5562,183.95,183.83,3.6131]
[1747185579123,70.5562,183.95,183.82,68.74]
[1747185579324,70.5562,183.95,183.78,68.76]
[1747185579727,5.4388,183.86,183.8,5.4404]
[1747185579926,74.1988,183.86,183.8,5.4404]
[1747185580326,68.76,183.86,183.75,68.76]
[1747185580723,70.5719,183.88,183.75,68.76]
[1747185581025,68.76,183.9,183.75,77.4883016]
[1747185581225,68.76,183.89,183.75,77.4883016]
[1747185581427,5.4386,183.86,183.81,5.44]
[1747185582036,68.76,183.89,183.79,68.76]
[1747185582631,5.4385,183.87,183.82,5.4395]
[1747185582931,68.76,183.9,183.79,68.76]
[1747185583133,74.1973,183.91,183.86,5.4384]
[1747185583331,68.76,183.91,183.8,68.76]
[1747185583531,68.76,183.91,183.79,68.76]
[1747185584133,5.4382,183.88,183.82,5.4395]
[1747185584432,5.4382,183.88,183.75,77.4883016]
[1747185584433,68.76,183.88,183.75,68.76]
[1747185584829,77.4883016,183.88,183.75,68.76]
[1747185585231,77.4883016,183.88,183.73,1.8145]
[1747185585532,77.4883016,183.88,183.71,68.76]
[1747185585932,5.4411,183.78,183.72,5.4426]
[1747185586132,68.76,183.79,183.72,5.4426]
[1747185586336,68.76,183.79,183.71,68.76]
[1747185586636,68.76,183.81,183.71,68.76]
[1747185586827,1.8194,183.9,183.71,68.76]
[1747185587031,68.76,183.86,183.72,8.7283016]
[1747185587331,68.76,183.86,183.73,68.76]
[1747185587734,3.5833,183.85,183.77,5.4413]
[1747185587937,68.76,183.84,183.73,68.76]
[1747185588132,74.1995,183.84,183.79,5.4406]
[1747185588329,68.76,183.84,183.73,68.76]
[1747185588630,68.76,183.84,183.72,68.76]
[1747185589829,5.4401,183.81,183.72,68.76]
[1747185590029,68.76,183.84,183.72,68.76]
[1747185591739,5.4401,183.81,183.72,68.76]
[1747185592532,5.4404,183.8,183.72,68.76]
[1747185593334,5.4404,183.8,183.76,5.4415]
[1747185594235,1.8194,183.9,183.72,68.76]
[1747185594437,141.0707,183.89,183.7,8.7283016]
[1747185594632,141.0707,183.89,183.71,68.78]
[1747185595336,8.7283016,183.88,183.71,68.78]
[1747185596239,8.7283016,183.88,183.68,5.4586]
[1747185596640,5.4419,183.75,183.71,5.4429]
[1747185597140,68.76,183.77,183.68,5.4586]
[1747185598034,68.76,183.77,183.63,68.8]
[1747185598236,5.5022,183.76,183.65,5.4446]
[1747185598739,5.4433,183.71,183.66,5.4444]
[1747185599043,68.76,183.71,183.63,68.8]
[1747185599240,68.76,183.71,183.66,5.4443]
[1747185600143,74.2032,183.71,183.66,5.4443]
[1747185600342,68.76,183.71,183.63,68.8]
[1747185600843,5.4434,183.7,183.65,5.4448]
[1747185601045,68.76,183.71,183.63,68.8]
[1747185601237,68.76,183.71,183.58,72.2273]
[1747185601433,68.76,183.71,183.6,5.4463]
[1747185601839,68.76,183.71,183.58,74.2468]
[1747185602049,68.76,183.71,183.56,1.8383]
[1747185602437,68.76,183.71,183.54,68.82]
[1747185603550,137.56,183.7,183.54,68.82]
[1747185604445,470.28,183.75,183.54,68.82]
[1747185604642,8.7283016,183.73,183.54,68.82]
[1747185604845,5.4455,183.63,183.54,68.82]
[1747185605144,74.2255,183.63,183.54,68.82]
[1747185605333,68.78,183.63,183.54,68.82]
[1747185605644,5.4459,183.62,183.57,5.4471]
[1747185605845,68.78,183.63,183.54,68.82]
[1747185606244,5.4457,183.62,183.57,5.4471]
[1747185606546,68.78,183.63,183.54,68.82]
[1747185607044,68.78,183.63,183.57,5.447]
[1747185607344,68.78,183.63,183.54,68.82]
[1747185607540,68.78,183.63,183.6,5.4463]
[1747185607745,68.78,183.63,183.54,68.82]
[1747185607949,68.78,183.65,183.54,68.82]
[1747185608245,68.78,183.64,183.54,68.82]
[1747185608445,68.78,183.64,183.58,5.4468]
[1747185608644,68.78,183.64,183.54,68.82]
[1747185609847,5.446,183.62,183.57,5.4472]
[1747185610146,5.446,183.62,183.54,68.82]
[1747185610346,68.78,183.64,183.54,68.82]
[1747185610947,5.4469,183.59,183.53,5.4482]
[1747185611147,3.5085,183.63,183.5,68.8]
[1747185611542,5.4478,183.55,183.5,68.8]
[1747185611749,68.8,183.58,183.5,68.8]
[1747185613450,72.3085,183.63,183.5,77.5283016]
[1747185613649,72.3085,183.63,183.51,68.8]
[1747185613845,5.4465,183.6,183.56,5.4473]
[1747185614250,1.7377,183.68,183.57,68.82]
[1747185614550,68.8,183.67,183.57,68.82]
[1747185615253,68.8,183.67,183.58,1.7464]
[1747185616943,1.7951,183.74,183.58,1.7464]
[1747185617144,137.62,183.73,183.58,1.7464]
[1747185617452,5.4431,183.71,183.6,8.7283016]
[1747185617654,68.8,183.72,183.61,68.8]
[1747185617853,68.8,183.72,183.58,1.7464]
[1747185618053,68.8,183.72,183.61,5.4458]
[1747185618254,68.8,183.72,183.58,1.7464]
[1747185618552,5.4447,183.66,183.58,1.7464]
[1747185618755,68.8,183.67,183.58,1.7464]
[1747185619561,68.8,183.67,183.57,68.82]
[1747185619853,68.8,183.67,183.55,1.7837]
[1747185620058,3.5693,183.66,183.55,1.7837]
[1747185620560,5.4456,183.63,183.59,5.4465]
[1747185620761,3.5693,183.66,183.55,1.7837]
[1747185622054,3.5693,183.66,183.59,5.4465]
[1747185622255,3.5693,183.66,183.55,1.7837]
[1747185622561,3.5693,183.66,183.53,68.82]
[1747185623065,5.4472,183.57,183.53,5.4481]
[1747185623358,68.8,183.6,183.49,68.82]
[1747185623560,137.62,183.59,183.49,68.82]
[1747185623761,68.82,183.58,183.5,5.4491]
[1747185624063,68.82,183.58,183.45,70.6056]
[1747185624265,5.449,183.51,183.46,5.4502]
[1747185624458,5.449,183.51,183.45,70.6056]
[1747185624763,5.4487,183.52,183.47,5.4499]
[1747185625062,68.8,183.53,183.45,68.82]
[1747185625272,5.4486,183.53,183.48,5.4498]
[1747185625454,70.6069,183.57,183.46,1.7856]
[1747185625657,68.8,183.57,183.46,1.7856]
[1747185625855,70.4884,183.62,183.48,8.7283016]
[1747185626059,70.4884,183.62,183.49,68.8]
[1747185626255,5.4478,183.55,183.5,1.8452]
[1747185626451,70.4884,183.62,183.51,5.4489]
[1747185626661,70.4884,183.62,183.5,1.8452]
[1747185626861,5.4487,183.52,183.49,74.2895]
[1747185627062,68.8,183.56,183.49,68.84]
[1747185627262,68.8,183.57,183.49,68.84]
[1747185627464,68.8,183.61,183.49,68.84]
[1747185628056,5.4469,183.59,183.55,5.4476]
[1747185628262,68.8,183.61,183.52,68.8]
[1747185628565,68.8,183.61,183.53,72.4933]
[1747185630362,68.84,183.63,183.53,72.4933]
[1747185630962,5.4463,183.6,183.56,5.4472]
[1747185631767,5.4463,183.6,183.57,5.4472]
[1747185632163,5.4467,183.59,183.53,72.4933]
[1747185632768,5.4467,183.59,183.55,5.4475]
[1747185633165,68.84,183.63,183.48,693.78]
[1747185633467,68.84,183.63,183.49,68.84]
[1747185633468,68.78,183.62,183.49,68.84]
[1747185633765,5.446,183.61,183.49,68.84]
[1747185633962,5.446,183.61,183.57,5.4469]
[1747185634269,68.78,183.64,183.54,68.78]
[1747185634469,68.78,183.64,183.55,3.4829]
[1747185634967,68.78,183.66,183.55,3.4829]
[1747185635265,68.78,183.66,183.56,1.8155]
[1747185637371,68.78,183.66,183.64,5.4451]
[1747185637572,68.78,183.66,183.56,1.8155]
[1747185638169,68.78,183.66,183.57,68.78]
[1747185638772,68.78,183.69,183.57,68.78]
[1747185639365,74.2239,183.69,183.65,5.4446]
[1747185640068,5.4439,183.69,183.65,5.4446]
[1747185640268,5.4439,183.69,183.66,5.4444]
[1747185640468,142.9634,183.7,183.6,68.76]
[1747185640669,68.76,183.7,183.6,68.76]
[1747185641073,74.2034,183.7,183.6,68.76]
[1747185641273,68.76,183.7,183.6,68.76]
[1747185641477,5.4437,183.69,183.66,5.4444]
[1747185641676,68.76,183.7,183.66,5.4444]
[1747185642375,5.4438,183.69,183.66,5.4444]
[1747185643066,74.2034,183.7,183.66,5.4444]
[1747185643566,5.4447,183.66,183.56,7.19694157]
[1747185643766,5.4447,183.66,183.57,68.76]
[1747185644079,5.4443,183.67,183.63,5.4454]
[1747185644273,68.76,183.7,183.57,68.76]
[1747185644778,68.76,183.71,183.66,5.4443]
[1747185645174,5.4431,183.71,183.62,68.76]
[1747185645681,68.76,183.74,183.67,5.4441]
[1747185645981,137.5,183.74,183.62,137.5]
[1747185646481,5.4433,183.71,183.62,137.5]
[1747185646683,137.5,183.74,183.62,137.5]
[1747185647282,68.72,183.73,183.62,137.5]
[1747185647778,68.72,183.73,183.63,1.8781]
[1747185648378,5.4433,183.71,183.67,5.444]
[1747185649183,5.4429,183.72,183.63,1.8781]
[1747185649885,5.4429,183.72,183.68,5.4437]
[1747185650384,1.7124,183.75,183.63,1.8781]
[1747185650586,470.66,183.83,183.67,5.38144157]
[1747185650785,68.72,183.82,183.68,139.1719]
[1747185650980,5.4409,183.79,183.68,139.1719]
[1747185651583,68.72,183.82,183.68,139.1719]
[1747185651781,68.72,183.82,183.64,1.8796]
[1747185652085,68.72,183.82,183.65,68.74]
[1747185652285,5.4425,183.73,183.68,5.4437]
[1747185653384,5.4422,183.74,183.69,5.4436]
[1747185653584,5.4422,183.74,183.65,68.74]
[1747185653585,68.7,183.75,183.65,68.74]
[1747185653884,68.7,183.75,183.68,5.4439]
[1747185654085,68.7,183.75,183.65,68.74]
[1747185654479,68.7,183.75,183.65,74.1847]
[1747185655386,68.7,183.75,183.66,5.4444]